[Event "2026 Biel Blitz Open"]
[Site "Biel, CH"]
[Date "2026.07.19"]
[Round "3"]
[White "Rohrer, Christophe"]
[Black "Aryan Goyal"]
[Result "1/2-1/2"]
[Board "19"]
[TimeControl "180+2"]
[WhiteFideId "1326546"]
[BlackFideId "366108825"]
[WhiteElo "2216"]
[BlackElo "1748"]
[WhiteTitle "FM"]
[WhiteClock "0:00:06"]
[BlackClock "0:00:12"]
[Variant "Standard"]
[EndDate "2026.07.19"]
[EndTime "12:29:25"]

1. e4 {[%clk 0:03:03]}  e5 {[%clk 0:03:04]} 2. Nf3 {[%clk 0:03:04]}  Nc6 {[%clk 0:03:05]} 3. Bb5 {[%clk 0:03:05]}  a6 {[%clk 0:03:07]}
4. Ba4 {[%clk 0:03:07]}  Nf6 {[%clk 0:03:08]} 5. O-O {[%clk 0:03:07]}  Nxe4 {[%clk 0:03:08]} 6. d4 {[%clk 0:03:08]}  b5 {[%clk 0:03:09]}
7. Bb3 {[%clk 0:03:09]}  d5 {[%clk 0:03:10]} 8. dxe5 {[%clk 0:03:10]}  Be6 {[%clk 0:03:12]} 9. Qe2 {[%clk 0:03:11]}  Be7 {[%clk 0:03:11]}
10. Rd1 {[%clk 0:03:11]}  O-O {[%clk 0:03:11]} 11. c4 {[%clk 0:03:12]}  bxc4 {[%clk 0:03:11]} 12. Bxc4 {[%clk 0:03:13]}  Bc5 {[%clk 0:03:12]}
13. Be3 {[%clk 0:03:14]}  Bxe3 {[%clk 0:03:13]} 14. Qxe3 {[%clk 0:03:15]}  Qb8 {[%clk 0:03:12]} 15. Bb3 {[%clk 0:03:15]}  Ne7 {[%clk 0:03:13]}
16. Nbd2 {[%clk 0:02:44]}  Nf5 {[%clk 0:03:07]} 17. Qe2 {[%clk 0:02:22]}  Nxd2 {[%clk 0:02:56]} 18. Rxd2 {[%clk 0:02:21]}  Rd8 {[%clk 0:02:49]}
19. Rc1 {[%clk 0:02:08]}  a5 {[%clk 0:02:28]} 20. g4 {[%clk 0:01:32]}  Ne7 {[%clk 0:02:16]} 21. Nd4 {[%clk 0:01:33]}  a4 {[%clk 0:02:01]}
22. Bc2 {[%clk 0:01:34]}  c5 {[%clk 0:02:00]} 23. Nf5 {[%clk 0:01:29]}  Ng6 {[%clk 0:01:51]} 24. Re1 {[%clk 0:01:10]}  Ra7 {[%clk 0:01:22]}
25. h4 {[%clk 0:01:11]}  Nf4 {[%clk 0:01:07]} 26. Qf3 {[%clk 0:01:10]}  Qb4 {[%clk 0:01:07]} 27. Red1 {[%clk 0:00:58]}  Bxf5 {[%clk 0:00:43]}
28. gxf5 {[%clk 0:00:49]}  Ra6 {[%clk 0:00:24]} 29. a3 {[%clk 0:00:49]}  Qc4 {[%clk 0:00:24]} 30. Be4 {[%clk 0:00:32]}  Re8 {[%clk 0:00:06]}
31. Qxf4 {[%clk 0:00:24]}  Qxe4 {[%clk 0:00:06]} 32. Qxe4 {[%clk 0:00:20]}  dxe4 {[%clk 0:00:08]} 33. Rd8 {[%clk 0:00:19]}  Ra8 {[%clk 0:00:08]}
34. Rxe8+ {[%clk 0:00:19]}  Rxe8 {[%clk 0:00:09]} 35. Rd5 {[%clk 0:00:21]}  Rc8 {[%clk 0:00:09]} 36. Kf1 {[%clk 0:00:21]}  Kf8 {[%clk 0:00:08]}
37. Ke2 {[%clk 0:00:23]}  Ke7 {[%clk 0:00:09]} 38. Ke3 {[%clk 0:00:24]}  Rb8 {[%clk 0:00:10]} 39. Rxc5 {[%clk 0:00:24]}  Rxb2 {[%clk 0:00:11]}
40. Rc7+ {[%clk 0:00:24]}  Ke8 {[%clk 0:00:12]} 41. Kxe4 {[%clk 0:00:23]}  Rxf2 {[%clk 0:00:12]} 42. Ra7 {[%clk 0:00:24]}  Rh2 {[%clk 0:00:12]}
43. Kd5 {[%clk 0:00:25]}  Rxh4 {[%clk 0:00:13]} 44. Kd6 {[%clk 0:00:11]}  Rd4+ {[%clk 0:00:14]} 45. Kc5 {[%clk 0:00:12]}  Re4 {[%clk 0:00:11]}
46. Kd5 {[%clk 0:00:13]}  Rf4 {[%clk 0:00:10]} 47. Ra8+ {[%clk 0:00:09]}  Ke7 {[%clk 0:00:10]} 48. Ra7+ {[%clk 0:00:10]}  Ke8 {[%clk 0:00:11]}
49. Kd6 {[%clk 0:00:05]}  Rd4+ {[%clk 0:00:12]} 50. Kc6 {[%clk 0:00:06]}  Rf4 {[%clk 0:00:07]} 51. Ra8+ {[%clk 0:00:05]}  Ke7 {[%clk 0:00:09]}
52. Ra7+ {[%clk 0:00:06]}  Ke8 {[%clk 0:00:10]} 53. Ra8+ {[%clk 0:00:06]}  Ke7 {[%clk 0:00:12]} 1/2-1/2

[Event "2026 Biel Blitz Open"]
[Site "Biel, CH"]
[Date "2026.07.19"]
[Round "3"]
[White "Ghosh, Diptayan"]
[Black "Alexakis, Dimitrios"]
[Result "1-0"]
[Board "20"]
[TimeControl "180+2"]
[WhiteFideId "5045207"]
[BlackFideId "4200527"]
[WhiteElo "2530"]
[BlackElo "1895"]
[WhiteTitle "GM"]
[WhiteClock "0:01:05"]
[BlackClock "0:00:03"]
[Variant "Standard"]
[EndDate "2026.07.19"]
[EndTime "12:37:59"]

1. Nf3 {[%clk 0:03:02]}  Nf6 {[%clk 0:03:03]} 2. g3 {[%clk 0:03:03]}  c5 {[%clk 0:03:01]} 3. Bg2 {[%clk 0:03:03]}  Nc6 {[%clk 0:03:02]}
4. O-O {[%clk 0:03:03]}  e5 {[%clk 0:03:01]} 5. c4 {[%clk 0:03:04]}  d6 {[%clk 0:03:00]} 6. Nc3 {[%clk 0:03:03]}  Be7 {[%clk 0:02:59]}
7. a3 {[%clk 0:03:03]}  O-O {[%clk 0:02:58]} 8. d3 {[%clk 0:03:03]}  h6 {[%clk 0:02:55]} 9. Rb1 {[%clk 0:03:04]}  a5 {[%clk 0:02:53]}
10. Ne1 {[%clk 0:02:56]}  Bg4 {[%clk 0:02:46]} 11. Nc2 {[%clk 0:02:55]}  Rb8 {[%clk 0:02:21]} 12. Ne3 {[%clk 0:02:51]}  Be6 {[%clk 0:02:17]}
13. Ned5 {[%clk 0:02:50]}  Nd7 {[%clk 0:01:57]} 14. Bd2 {[%clk 0:02:47]}  f5 {[%clk 0:01:57]} 15. b4 {[%clk 0:02:37]}  axb4 {[%clk 0:01:57]}
16. axb4 {[%clk 0:02:37]}  cxb4 {[%clk 0:01:57]} 17. Nb5 {[%clk 0:02:20]}  Kh7 {[%clk 0:01:43]} 18. Nxb4 {[%clk 0:02:19]}  Nxb4 {[%clk 0:01:38]}
19. Bxb4 {[%clk 0:02:20]}  Nc5 {[%clk 0:01:18]} 20. Nc3 {[%clk 0:02:14]}  f4 {[%clk 0:01:12]} 21. Bxc5 {[%clk 0:02:07]}  dxc5 {[%clk 0:01:13]}
22. Rxb7 {[%clk 0:02:08]}  Rxb7 {[%clk 0:01:11]} 23. Bxb7 {[%clk 0:02:09]}  Bh3 {[%clk 0:01:03]} 24. Bg2 {[%clk 0:02:08]}  Qd7 {[%clk 0:00:48]}
25. Qa4 {[%clk 0:01:43]}  Qe6 {[%clk 0:00:42]} 26. Bxh3 {[%clk 0:01:29]}  Qxh3 {[%clk 0:00:43]} 27. Qc6 {[%clk 0:01:28]}  fxg3 {[%clk 0:00:29]}
28. hxg3 {[%clk 0:01:29]}  Bg5 {[%clk 0:00:25]} 29. Qg2 {[%clk 0:01:28]}  Qe6 {[%clk 0:00:23]} 30. Rb1 {[%clk 0:01:24]}  h5 {[%clk 0:00:06]}
31. Qe4+ {[%clk 0:01:21]}  Kh6 {[%clk 0:00:04]} 32. Nd5 {[%clk 0:01:14]}  Qf7 {[%clk 0:00:03]} 33. f3 {[%clk 0:01:05]} 1-0

[Event "2026 Biel Blitz Open"]
[Site "Biel, CH"]
[Date "2026.07.19"]
[Round "3"]
[White "Dai, Wenzhi"]
[Black "Filipovic, Branko"]
[Result "0-1"]
[Board "22"]
[TimeControl "180+2"]
[WhiteFideId "8608369"]
[BlackFideId "14507951"]
[WhiteElo "1943"]
[BlackElo "2109"]
[BlackTitle "IM"]
[WhiteClock "0:00:04"]
[BlackClock "0:00:10"]
[Variant "Standard"]
[EndDate "2026.07.19"]
[EndTime "12:37:46"]

1. e4 {[%clk 0:03:03]}  Nf6 {[%clk 0:03:02]} 2. e5 {[%clk 0:03:04]}  Nd5 {[%clk 0:03:04]} 3. c4 {[%clk 0:03:05]}  Nb6 {[%clk 0:03:05]}
4. d4 {[%clk 0:03:06]}  d6 {[%clk 0:03:06]} 5. exd6 {[%clk 0:03:07]}  cxd6 {[%clk 0:03:08]} 6. Nc3 {[%clk 0:03:07]}  g6 {[%clk 0:03:09]}
7. h3 {[%clk 0:03:04]}  Bg7 {[%clk 0:03:10]} 8. Nf3 {[%clk 0:03:05]}  O-O {[%clk 0:03:11]} 9. Be2 {[%clk 0:03:06]}  Nc6 {[%clk 0:03:12]}
10. O-O {[%clk 0:03:06]}  Bf5 {[%clk 0:03:12]} 11. Re1 {[%clk 0:02:38]}  h6 {[%clk 0:02:53]} 12. a3 {[%clk 0:02:35]}  e5 {[%clk 0:02:39]}
13. Be3 {[%clk 0:01:52]}  Rc8 {[%clk 0:02:12]} 14. Rc1 {[%clk 0:00:50]}  exd4 {[%clk 0:01:55]} 15. Nxd4 {[%clk 0:00:51]}  Nxd4 {[%clk 0:01:57]}
16. Bxd4 {[%clk 0:00:51]}  Nxc4 {[%clk 0:01:56]} 17. Bxg7 {[%clk 0:00:35]}  Kxg7 {[%clk 0:01:56]} 18. Qd4+ {[%clk 0:00:28]}  Ne5 {[%clk 0:01:49]}
19. f4 {[%clk 0:00:28]}  Qa5 {[%clk 0:01:29]} 20. fxe5 {[%clk 0:00:27]}  dxe5 {[%clk 0:01:31]} 21. Qf2 {[%clk 0:00:28]}  Be6 {[%clk 0:01:24]}
22. Bf3 {[%clk 0:00:26]}  b6 {[%clk 0:01:20]} 23. Qe3 {[%clk 0:00:27]}  f6 {[%clk 0:01:16]} 24. Ne4 {[%clk 0:00:24]}  Rfd8 {[%clk 0:01:01]}
25. Kh2 {[%clk 0:00:22]}  b5 {[%clk 0:00:45]} 26. b4 {[%clk 0:00:21]}  Qb6 {[%clk 0:00:41]} 27. Nc5 {[%clk 0:00:18]}  Bf7 {[%clk 0:00:41]}
28. Red1 {[%clk 0:00:19]}  Rxd1 {[%clk 0:00:39]} 29. Rxd1 {[%clk 0:00:20]}  Rd8 {[%clk 0:00:41]} 30. Rxd8 {[%clk 0:00:18]}  Qxd8 {[%clk 0:00:43]}
31. Qd3 {[%clk 0:00:19]}  Qb8 {[%clk 0:00:42]} 32. Kh1 {[%clk 0:00:15]}  f5 {[%clk 0:00:40]} 33. Qd7 {[%clk 0:00:16]}  e4 {[%clk 0:00:38]}
34. Be2 {[%clk 0:00:12]}  Qe5 {[%clk 0:00:37]} 35. Qd1 {[%clk 0:00:07]}  f4 {[%clk 0:00:29]} 36. Nb3 {[%clk 0:00:07]}  Bd5 {[%clk 0:00:25]}
37. Qd4 {[%clk 0:00:07]}  Kf6 {[%clk 0:00:23]} 38. Qxe5+ {[%clk 0:00:07]}  Kxe5 {[%clk 0:00:25]} 39. Nd2 {[%clk 0:00:04]}  a6 {[%clk 0:00:24]}
40. Kg1 {[%clk 0:00:04]}  Kd4 {[%clk 0:00:24]} 41. Kf1 {[%clk 0:00:04]}  g5 {[%clk 0:00:18]} 42. Ke1 {[%clk 0:00:05]}  Ke3 {[%clk 0:00:16]}
43. Nf1+ {[%clk 0:00:04]}  Kd4 {[%clk 0:00:18]} 44. Nd2 {[%clk 0:00:03]}  Ke3 {[%clk 0:00:14]} 45. Nf1+ {[%clk 0:00:04]}  Kd4 {[%clk 0:00:16]}
46. Nh2 {[%clk 0:00:05]}  Bf7 {[%clk 0:00:10]} 47. Ng4 {[%clk 0:00:05]}  h5 {[%clk 0:00:11]} 48. Nf6 {[%clk 0:00:06]}  Ke3 {[%clk 0:00:09]}
49. Nd7 {[%clk 0:00:04]}  f3 {[%clk 0:00:09]} 50. gxf3 {[%clk 0:00:05]}  exf3 {[%clk 0:00:10]} 51. Bf1 {[%clk 0:00:04]}  g4 {[%clk 0:00:10]}
52. hxg4 {[%clk 0:00:05]}  hxg4 {[%clk 0:00:11]} 53. Ne5 {[%clk 0:00:06]}  Be6 {[%clk 0:00:13]} 54. Ng6 {[%clk 0:00:03]}  g3 {[%clk 0:00:12]}
55. Nh4 {[%clk 0:00:04]}  Bd5 {[%clk 0:00:12]} 56. Bh3 {[%clk 0:00:04]}  f2+ {[%clk 0:00:12]} 57. Kd1 {[%clk 0:00:00]}  Bf3+ {[%clk 0:00:12]}
58. Nxf3 {[%clk 0:00:00]}  Kxf3 {[%clk 0:00:10]} 0-1

[Event "2026 Biel Blitz Open"]
[Site "Biel, CH"]
[Date "2026.07.19"]
[Round "3"]
[White "Haimovich, Tal"]
[Black "Hirt, Markus"]
[Result "1-0"]
[Board "23"]
[TimeControl "180+2"]
[WhiteFideId "2801698"]
[BlackFideId "1302582"]
[WhiteElo "2347"]
[BlackElo "1880"]
[WhiteTitle "IM"]
[WhiteClock "0:01:17"]
[BlackClock "0:00:29"]
[Variant "Standard"]
[EndDate "2026.07.19"]
[EndTime "12:35:37"]

1. Nf3 {[%clk 0:03:03]}  e6 {[%clk 0:03:03]} 2. b3 {[%clk 0:03:04]}  d5 {[%clk 0:03:04]} 3. Bb2 {[%clk 0:03:05]}  Nf6 {[%clk 0:03:04]}
4. e3 {[%clk 0:03:06]}  Be7 {[%clk 0:03:05]} 5. c4 {[%clk 0:03:06]}  O-O {[%clk 0:03:04]} 6. Be2 {[%clk 0:03:06]}  c5 {[%clk 0:03:02]}
7. O-O {[%clk 0:03:05]}  Nc6 {[%clk 0:03:03]} 8. d4 {[%clk 0:03:06]}  b6 {[%clk 0:03:02]} 9. cxd5 {[%clk 0:03:02]}  Nxd5 {[%clk 0:03:00]}
10. Nbd2 {[%clk 0:02:47]}  Bb7 {[%clk 0:02:56]} 11. dxc5 {[%clk 0:02:45]}  bxc5 {[%clk 0:02:39]} 12. Rc1 {[%clk 0:02:44]}  Rc8 {[%clk 0:02:31]}
13. a3 {[%clk 0:02:35]}  Qd7 {[%clk 0:02:21]} 14. Qc2 {[%clk 0:02:34]}  Rfd8 {[%clk 0:02:17]} 15. Rfd1 {[%clk 0:02:34]}  Bf8 {[%clk 0:02:05]}
16. Ne4 {[%clk 0:02:30]}  Nb8 {[%clk 0:01:52]} 17. Neg5 {[%clk 0:02:29]}  g6 {[%clk 0:01:52]} 18. e4 {[%clk 0:02:28]}  Nf4 {[%clk 0:01:17]}
19. Rxd7 {[%clk 0:02:28]}  Rxd7 {[%clk 0:01:19]} 20. Bc4 {[%clk 0:02:20]}  Rcd8 {[%clk 0:01:16]} 21. h4 {[%clk 0:02:06]}  h6 {[%clk 0:01:14]}
22. Qc3 {[%clk 0:01:37]}  Rd4 {[%clk 0:01:06]} 23. Nxd4 {[%clk 0:01:33]}  cxd4 {[%clk 0:01:07]} 24. Qf3 {[%clk 0:01:20]}  hxg5 {[%clk 0:01:05]}
25. hxg5 {[%clk 0:01:21]}  e5 {[%clk 0:01:03]} 26. g3 {[%clk 0:01:20]}  Ne6 {[%clk 0:01:00]} 27. Bxe6 {[%clk 0:01:19]}  fxe6 {[%clk 0:01:02]}
28. Rc7 {[%clk 0:01:17]}  Rd7 {[%clk 0:00:57]} 29. Rxd7 {[%clk 0:01:17]}  Nxd7 {[%clk 0:00:59]} 30. Qg4 {[%clk 0:01:17]}  Kf7 {[%clk 0:00:55]}
31. Qe2 {[%clk 0:01:18]}  Be7 {[%clk 0:00:43]} 32. Qb5 {[%clk 0:01:17]}  Bc8 {[%clk 0:00:43]} 33. Qc6 {[%clk 0:01:15]}  Nb6 {[%clk 0:00:42]}
34. a4 {[%clk 0:01:15]}  Bd7 {[%clk 0:00:42]} 35. Qc7 {[%clk 0:01:16]}  d3 {[%clk 0:00:35]} 36. Bc3 {[%clk 0:01:16]}  Bxg5 {[%clk 0:00:26]}
37. a5 {[%clk 0:01:16]}  d2 {[%clk 0:00:27]} 38. Bxd2 {[%clk 0:01:16]}  Bxd2 {[%clk 0:00:28]} 39. axb6 {[%clk 0:01:16]}  axb6 {[%clk 0:00:29]}
40. Qxd7+ {[%clk 0:01:17]} 1-0

[Event "2026 Biel Blitz Open"]
[Site "Biel, CH"]
[Date "2026.07.19"]
[Round "3"]
[White "Draude, Theo"]
[Black "Schweizer, Simon"]
[Result "0-1"]
[Board "25"]
[TimeControl "180+2"]
[WhiteFideId "34623809"]
[BlackFideId "1325361"]
[WhiteElo "1861"]
[BlackElo "2182"]
[WhiteClock "0:00:05"]
[BlackClock "0:01:09"]
[Variant "Standard"]
[EndDate "2026.07.19"]
[EndTime "12:27:59"]

1. e4 {[%clk 0:03:04]}  g6 {[%clk 0:03:03]} 2. d4 {[%clk 0:03:05]}  Bg7 {[%clk 0:03:04]} 3. Bc4 {[%clk 0:03:05]}  d6 {[%clk 0:03:06]}
4. Nc3 {[%clk 0:02:58]}  a6 {[%clk 0:03:07]} 5. Be3 {[%clk 0:02:50]}  b5 {[%clk 0:03:07]} 6. Bb3 {[%clk 0:02:52]}  Bb7 {[%clk 0:03:08]}
7. a3 {[%clk 0:02:37]}  e6 {[%clk 0:03:09]} 8. f3 {[%clk 0:02:33]}  h5 {[%clk 0:03:09]} 9. Nge2 {[%clk 0:02:34]}  Nd7 {[%clk 0:03:10]}
10. Qd2 {[%clk 0:02:31]}  Rc8 {[%clk 0:03:08]} 11. Nf4 {[%clk 0:02:11]}  Qe7 {[%clk 0:03:06]} 12. Bxe6 {[%clk 0:01:58]}  fxe6 {[%clk 0:03:06]}
13. Nxg6 {[%clk 0:01:58]}  Qf7 {[%clk 0:03:07]} 14. Nxh8 {[%clk 0:01:58]}  Bxh8 {[%clk 0:03:07]} 15. O-O-O {[%clk 0:01:51]}  Nb6 {[%clk 0:03:08]}
16. Bg5 {[%clk 0:01:31]}  Nc4 {[%clk 0:03:08]} 17. Qf4 {[%clk 0:01:32]}  Ne7 {[%clk 0:02:50]} 18. Rhe1 {[%clk 0:01:24]}  Qg7 {[%clk 0:02:43]}
19. h4 {[%clk 0:01:13]}  Ng6 {[%clk 0:02:40]} 20. Qh2 {[%clk 0:01:09]}  c5 {[%clk 0:02:37]} 21. dxc5 {[%clk 0:00:30]}  Rxc5 {[%clk 0:02:28]}
22. Qh3 {[%clk 0:00:10]}  Qf7 {[%clk 0:02:27]} 23. Rd3 {[%clk 0:00:08]}  Nge5 {[%clk 0:02:23]} 24. Red1 {[%clk 0:00:05]}  Nxd3+ {[%clk 0:02:22]}
25. Rxd3 {[%clk 0:00:06]}  Rc6 {[%clk 0:01:52]} 26. Qg3 {[%clk 0:00:07]}  Be5 {[%clk 0:01:52]} 27. Qf2 {[%clk 0:00:08]}  Nxa3 {[%clk 0:01:43]}
28. bxa3 {[%clk 0:00:08]}  Bxc3 {[%clk 0:01:44]} 29. f4 {[%clk 0:00:05]}  e5 {[%clk 0:01:39]} 30. Qa7 {[%clk 0:00:03]}  Qc7 {[%clk 0:01:32]}
31. Rd5 {[%clk 0:00:03]}  Ba5 {[%clk 0:01:28]} 32. Qf2 {[%clk 0:00:04]}  Rc4 {[%clk 0:01:21]} 33. fxe5 {[%clk 0:00:05]}  Bxd5 {[%clk 0:01:21]}
34. exd5 {[%clk 0:00:06]}  Qf7 {[%clk 0:01:18]} 35. Qe2 {[%clk 0:00:07]}  dxe5 {[%clk 0:01:11]} 36. Qxe5+ {[%clk 0:00:08]}  Kd7 {[%clk 0:01:12]}
37. Be3 {[%clk 0:00:03]}  Qf1+ {[%clk 0:01:08]} 38. Kb2 {[%clk 0:00:05]}  Bc3+ {[%clk 0:01:09]} 0-1

[Event "2026 Biel Blitz Open"]
[Site "Biel, CH"]
[Date "2026.07.19"]
[Round "3"]
[White "Liu, Bei"]
[Black "Gautschi, Rudolf"]
[Result "0-1"]
[Board "26"]
[TimeControl "180+2"]
[WhiteFideId "8603596"]
[BlackFideId "1318489"]
[WhiteElo "2170"]
[BlackElo "1857"]
[WhiteClock "0:00:03"]
[BlackClock "0:00:48"]
[Variant "Standard"]
[EndDate "2026.07.19"]
[EndTime "12:37:35"]

1. e4 {[%clk 0:03:03]}  c5 {[%clk 0:03:04]} 2. Nf3 {[%clk 0:03:04]}  d6 {[%clk 0:03:05]} 3. d4 {[%clk 0:03:05]}  cxd4 {[%clk 0:03:06]}
4. Nxd4 {[%clk 0:03:06]}  Nf6 {[%clk 0:03:08]} 5. Nc3 {[%clk 0:03:07]}  a6 {[%clk 0:03:09]} 6. h3 {[%clk 0:03:06]}  e6 {[%clk 0:03:08]}
7. g4 {[%clk 0:03:04]}  Qc7 {[%clk 0:03:08]} 8. Be3 {[%clk 0:02:56]}  Nc6 {[%clk 0:03:09]} 9. g5 {[%clk 0:02:52]}  Nd7 {[%clk 0:03:10]}
10. Bg2 {[%clk 0:02:53]}  Nde5 {[%clk 0:03:08]} 11. Qe2 {[%clk 0:02:50]}  Be7 {[%clk 0:03:06]} 12. f4 {[%clk 0:02:48]}  Nd7 {[%clk 0:03:07]}
13. O-O-O {[%clk 0:02:48]}  Rb8 {[%clk 0:03:06]} 14. h4 {[%clk 0:02:47]}  b5 {[%clk 0:03:02]} 15. f5 {[%clk 0:02:45]}  Nxd4 {[%clk 0:02:50]}
16. Bxd4 {[%clk 0:02:45]}  Ne5 {[%clk 0:02:46]} 17. Rhf1 {[%clk 0:02:23]}  Bb7 {[%clk 0:02:18]} 18. Bh3 {[%clk 0:02:13]}  Bc8 {[%clk 0:01:53]}
19. fxe6 {[%clk 0:02:10]}  Bxe6 {[%clk 0:01:54]} 20. Bxe6 {[%clk 0:02:11]}  fxe6 {[%clk 0:01:54]} 21. Bxe5 {[%clk 0:02:00]}  dxe5 {[%clk 0:01:55]}
22. Qf3 {[%clk 0:02:01]}  Rf8 {[%clk 0:01:35]} 23. Qh5+ {[%clk 0:02:02]}  g6 {[%clk 0:01:36]} 24. Qg4 {[%clk 0:01:51]}  Qc4 {[%clk 0:01:29]}
25. Rxf8+ {[%clk 0:01:13]}  Bxf8 {[%clk 0:01:28]} 26. Kb1 {[%clk 0:00:55]}  Rc8 {[%clk 0:01:29]} 27. Qg2 {[%clk 0:00:46]}  b4 {[%clk 0:01:16]}
28. Na4 {[%clk 0:00:47]}  Rd8 {[%clk 0:00:35]} 29. Rxd8+ {[%clk 0:00:46]}  Kxd8 {[%clk 0:00:36]} 30. b3 {[%clk 0:00:38]}  Qc6 {[%clk 0:00:35]}
31. Nb2 {[%clk 0:00:34]}  Bc5 {[%clk 0:00:36]} 32. Nc4 {[%clk 0:00:34]}  Bd4 {[%clk 0:00:36]} 33. Qf3 {[%clk 0:00:32]}  Qe8 {[%clk 0:00:33]}
34. a3 {[%clk 0:00:28]}  a5 {[%clk 0:00:34]} 35. Ka2 {[%clk 0:00:27]}  bxa3 {[%clk 0:00:31]} 36. Nxa3 {[%clk 0:00:21]}  a4 {[%clk 0:00:26]}
37. Nc4 {[%clk 0:00:18]}  axb3+ {[%clk 0:00:26]} 38. Qxb3 {[%clk 0:00:19]}  Qc6 {[%clk 0:00:24]} 39. Qb8+ {[%clk 0:00:18]}  Ke7 {[%clk 0:00:24]}
40. Qb4+ {[%clk 0:00:17]}  Ke8 {[%clk 0:00:24]} 41. Qb3 {[%clk 0:00:15]}  Qa6+ {[%clk 0:00:24]} 42. Na3 {[%clk 0:00:14]}  Bc5 {[%clk 0:00:23]}
43. Qb5+ {[%clk 0:00:13]}  Qxb5 {[%clk 0:00:23]} 44. Nxb5 {[%clk 0:00:15]}  Kd7 {[%clk 0:00:23]} 45. Kb3 {[%clk 0:00:15]}  Kc6 {[%clk 0:00:24]}
46. Na3 {[%clk 0:00:13]}  Bf2 {[%clk 0:00:25]} 47. Nc4 {[%clk 0:00:14]}  Bxh4 {[%clk 0:00:23]} 48. Nxe5+ {[%clk 0:00:15]}  Kd6 {[%clk 0:00:24]}
49. Nf3 {[%clk 0:01:13]}  Bg3 {[%clk 0:00:25]} 50. c4 {[%clk 0:01:12]}  Kc5 {[%clk 0:00:26]} 51. Kc3 {[%clk 0:01:11]}  Bf4 {[%clk 0:00:27]}
52. Kd3 {[%clk 0:01:03]}  h6 {[%clk 0:00:28]} 53. gxh6 {[%clk 0:01:03]}  Bxh6 {[%clk 0:00:29]} 54. Ne5 {[%clk 0:01:04]}  g5 {[%clk 0:00:27]}
55. Nf7 {[%clk 0:01:04]}  Bg7 {[%clk 0:00:27]} 56. Nxg5 {[%clk 0:01:05]}  Bf6 {[%clk 0:00:26]} 57. Nxe6+ {[%clk 0:01:06]}  Kd6 {[%clk 0:00:27]}
58. Nf4 {[%clk 0:01:05]}  Bg5 {[%clk 0:00:29]} 59. Nd5 {[%clk 0:01:06]}  Kc5 {[%clk 0:00:30]} 60. Nc7 {[%clk 0:01:04]}  Kc6 {[%clk 0:00:31]}
61. Ne6 {[%clk 0:01:05]}  Bf6 {[%clk 0:00:32]} 62. Nd4+ {[%clk 0:00:42]}  Kc5 {[%clk 0:00:34]} 63. Nb3+ {[%clk 0:00:42]}  Kc6 {[%clk 0:00:36]}
64. Ke3 {[%clk 0:00:37]}  Be5 {[%clk 0:00:36]} 65. Kf3 {[%clk 0:00:39]}  Kd6 {[%clk 0:00:34]} 66. Kg4 {[%clk 0:00:40]}  Ke6 {[%clk 0:00:35]}
67. Nc5+ {[%clk 0:00:35]}  Kf7 {[%clk 0:00:35]} 68. Kf5 {[%clk 0:00:36]}  Bd4 {[%clk 0:00:36]} 69. Nb7 {[%clk 0:00:33]}  Bb6 {[%clk 0:00:37]}
70. c5 {[%clk 0:00:29]}  Bc7 {[%clk 0:00:38]} 71. Nd6+ {[%clk 0:00:25]}  Ke7 {[%clk 0:00:39]} 72. Nb5 {[%clk 0:00:26]}  Bb8 {[%clk 0:00:39]}
73. c6 {[%clk 0:00:27]}  Kd8 {[%clk 0:00:39]} 74. c7+ {[%clk 0:00:26]}  Bxc7 {[%clk 0:00:40]} 75. Nxc7 {[%clk 0:00:28]}  Kxc7 {[%clk 0:00:42]}
76. Ke6 {[%clk 0:00:28]}  Kd8 {[%clk 0:00:43]} 77. e5 {[%clk 0:00:30]}  Ke8 {[%clk 0:00:44]} 78. Kd6 {[%clk 0:00:31]}  Kd8 {[%clk 0:00:45]}
79. e6 {[%clk 0:00:33]}  Ke8 {[%clk 0:00:46]} 80. e7 {[%clk 0:00:34]}  Kf7 {[%clk 0:00:47]} 81. Kd7 {[%clk 0:00:36]}  Kf6 {[%clk 0:00:48]}
82. e8=Q {[%clk 0:00:03]} 0-1

[Event "2026 Biel Blitz Open"]
[Site "Biel, CH"]
[Date "2026.07.19"]
[Round "3"]
[White "Strebel, Beda"]
[Black "Gireada, Daniel"]
[Result "0-1"]
[Board "27"]
[TimeControl "180+2"]
[WhiteFideId "1366432"]
[BlackFideId "1206451"]
[WhiteElo "1856"]
[BlackElo "2148"]
[WhiteClock "0:00:03"]
[BlackClock "0:01:12"]
[Variant "Standard"]
[EndDate "2026.07.19"]
[EndTime "12:36:38"]

1. e4 {[%clk 0:03:03]}  c6 {[%clk 0:03:03]} 2. d4 {[%clk 0:03:03]}  d5 {[%clk 0:03:04]} 3. exd5 {[%clk 0:03:04]}  cxd5 {[%clk 0:03:05]}
4. Bd3 {[%clk 0:03:06]}  Nc6 {[%clk 0:03:06]} 5. c3 {[%clk 0:03:07]}  Nf6 {[%clk 0:03:07]} 6. h3 {[%clk 0:03:08]}  e5 {[%clk 0:03:07]}
7. dxe5 {[%clk 0:03:09]}  Nxe5 {[%clk 0:03:08]} 8. Nf3 {[%clk 0:03:10]}  Nc6 {[%clk 0:02:59]} 9. O-O {[%clk 0:03:07]}  Be7 {[%clk 0:02:59]}
10. Bf4 {[%clk 0:03:06]}  O-O {[%clk 0:03:00]} 11. Re1 {[%clk 0:03:06]}  Bd6 {[%clk 0:02:53]} 12. Bg5 {[%clk 0:02:55]}  h6 {[%clk 0:02:51]}
13. Be3 {[%clk 0:02:49]}  Ne4 {[%clk 0:02:42]} 14. Nbd2 {[%clk 0:02:31]}  Bf5 {[%clk 0:02:35]} 15. Nd4 {[%clk 0:01:51]}  Nxf2 {[%clk 0:02:28]}
16. Bxf2 {[%clk 0:01:37]}  Bxd3 {[%clk 0:02:28]} 17. N2f3 {[%clk 0:01:36]}  Bg6 {[%clk 0:02:17]} 18. Qb3 {[%clk 0:01:26]}  Na5 {[%clk 0:02:07]}
19. Qd1 {[%clk 0:01:09]}  Rc8 {[%clk 0:01:56]} 20. Ne5 {[%clk 0:00:41]}  Bxe5 {[%clk 0:01:52]} 21. Rxe5 {[%clk 0:00:41]}  Nc4 {[%clk 0:01:52]}
22. Re2 {[%clk 0:00:38]}  Re8 {[%clk 0:01:49]} 23. Rxe8+ {[%clk 0:00:29]}  Qxe8 {[%clk 0:01:49]} 24. Qb3 {[%clk 0:00:16]}  b6 {[%clk 0:01:38]}
25. Re1 {[%clk 0:00:16]}  Qd7 {[%clk 0:01:38]} 26. Nf3 {[%clk 0:00:09]}  Be4 {[%clk 0:01:34]} 27. Nd4 {[%clk 0:00:03]}  Re8 {[%clk 0:01:28]}
28. Rd1 {[%clk 0:00:04]}  Qe7 {[%clk 0:01:22]} 29. Nb5 {[%clk 0:00:05]}  Qg5 {[%clk 0:01:20]} 30. g4 {[%clk 0:00:03]}  h5 {[%clk 0:01:12]} 0-1